[Event "Titled Tuesday Blitz August 3 2021"]
[White "Harshavardhan G B"]
[Black "Andrews, Todd"]
[WhiteFideId "25059009"]
[BlackFideId "2012456"]
[WhiteElo "1825"]
[BlackElo "2437"]
[Result "1-0"]
[Round "08"]
[TimeControl "180+1"]
[Date "2021.08.03"]
[WhiteClock "0:00:42"]
[BlackClock "0:00:20"]

1. e4 {[%clk 0:03:00]}  e6 {[%clk 0:02:59]} 2. d4 {[%clk 0:02:58]}  d5 {[%clk 0:03:00]} 3. Nd2 {[%clk 0:02:57]}  Nf6 {[%clk 0:02:59]} 4. e5 {[%clk 0:02:57]}  Nfd7 {[%clk 0:03:00]} 5. Bd3 {[%clk 0:02:58]}  c5 {[%clk 0:03:00]} 6. c3 {[%clk 0:02:57]}  Nc6 {[%clk 0:03:01]} 7. Ne2 {[%clk 0:02:57]}  cxd4 {[%clk 0:03:01]} 8. cxd4 {[%clk 0:02:57]}  Qb6 {[%clk 0:03:01]} 9. Nf3 {[%clk 0:02:57]}  f6 {[%clk 0:03:02]} 10. exf6 {[%clk 0:02:58]}  Nxf6 {[%clk 0:03:02]} 11. O-O {[%clk 0:02:58]}  Bd6 {[%clk 0:03:03]} 12. Bf4 {[%clk 0:02:57]}  Bxf4 {[%clk 0:03:03]} 13. Nxf4 {[%clk 0:02:58]}  Qxb2 {[%clk 0:03:02]} 14. Rb1 {[%clk 0:02:54]}  Qxa2 {[%clk 0:03:02]} 15. Ng5 {[%clk 0:02:52]}  O-O {[%clk 0:02:59]} 16. Qh5 {[%clk 0:02:48]}  h6 {[%clk 0:02:51]} 17. Qh4 {[%clk 0:01:57]}  hxg5 {[%clk 0:02:27]} 18. Qxg5 {[%clk 0:01:55]}  Nxd4 {[%clk 0:02:13]} 19. Ng6 {[%clk 0:01:53]}  Rf7 {[%clk 0:02:02]} 20. Qh4 {[%clk 0:01:49]}  Nf3+ {[%clk 0:01:47]} 21. gxf3 {[%clk 0:01:48]}  Nh7 {[%clk 0:01:17]} 22. Ne5 {[%clk 0:01:35]}  Nf6 {[%clk 0:01:11]} 23. Rfc1 {[%clk 0:01:23]}  Qd2 {[%clk 0:00:59]} 24. Nxf7 {[%clk 0:01:09]}  Qxd3 {[%clk 0:00:58]} 25. Ne5 {[%clk 0:01:04]}  Qf5 {[%clk 0:00:55]} 26. f4 {[%clk 0:01:01]}  a5 {[%clk 0:00:49]} 27. Rb3 {[%clk 0:00:57]}  Bd7 {[%clk 0:00:41]} 28. Rh3 {[%clk 0:00:53]}  Kf8 {[%clk 0:00:25]} 29. Rg3 {[%clk 0:00:45]}  Be8 {[%clk 0:00:21]} 30. Qh8+ {[%clk 0:00:43]}  Ng8 {[%clk 0:00:20]} 31. Qxg7# {[%clk 0:00:42]} 1-0


[Site "https://www.chess.com"]

[Event "Titled Tuesday Blitz August 3 2021"]
[White "Iskusnyh, Sergei"]
[Black "Babiy, Olga"]
[WhiteFideId "4120027"]
[BlackFideId "14117258"]
[WhiteElo "2492"]
[BlackElo "2230"]
[Result "0-1"]
[Round "08"]
[TimeControl "180+1"]
[Date "2021.08.03"]
[WhiteClock "0:00:02"]
[BlackClock "0:00:12"]

1. d4 {[%clk 0:03:00]}  d5 {[%clk 0:02:56]} 2. c4 {[%clk 0:03:01]}  dxc4 {[%clk 0:02:57]} 3. e3 {[%clk 0:03:01]}  a6 {[%clk 0:02:54]} 4. Bxc4 {[%clk 0:02:59]}  Nf6 {[%clk 0:02:54]} 5. Nf3 {[%clk 0:02:59]}  e6 {[%clk 0:02:55]} 6. O-O {[%clk 0:02:58]}  c5 {[%clk 0:02:55]} 7. Nc3 {[%clk 0:02:57]}  Nc6 {[%clk 0:02:56]} 8. dxc5 {[%clk 0:02:54]}  Bxc5 {[%clk 0:02:48]} 9. Qxd8+ {[%clk 0:02:46]}  Nxd8 {[%clk 0:02:47]} 10. Nd2 {[%clk 0:02:35]}  b5 {[%clk 0:02:31]} 11. Be2 {[%clk 0:02:35]}  Bb7 {[%clk 0:02:31]} 12. Nb3 {[%clk 0:02:36]}  Bb6 {[%clk 0:02:26]} 13. a4 {[%clk 0:02:34]}  Nd5 {[%clk 0:01:59]} 14. axb5 {[%clk 0:02:28]}  Nxc3 {[%clk 0:01:59]} 15. bxc3 {[%clk 0:02:27]}  axb5 {[%clk 0:01:56]} 16. Bxb5+ {[%clk 0:02:27]}  Ke7 {[%clk 0:01:52]} 17. Rxa8 {[%clk 0:02:18]}  Bxa8 {[%clk 0:01:52]} 18. Rd1 {[%clk 0:02:17]}  Bc6 {[%clk 0:01:37]} 19. c4 {[%clk 0:02:05]}  Bxb5 {[%clk 0:01:27]} 20. cxb5 {[%clk 0:02:02]}  Nb7 {[%clk 0:01:27]} 21. Ba3+ {[%clk 0:02:01]}  Kf6 {[%clk 0:01:27]} 22. Rd7 {[%clk 0:01:57]}  Na5 {[%clk 0:01:11]} 23. Bb2+ {[%clk 0:01:39]}  Kg6 {[%clk 0:01:09]} 24. Nxa5 {[%clk 0:01:37]}  Bxa5 {[%clk 0:01:09]} 25. Bd4 {[%clk 0:01:36]}  Rb8 {[%clk 0:01:05]} 26. h4 {[%clk 0:01:29]}  Rxb5 {[%clk 0:01:04]} 27. g4 {[%clk 0:01:28]}  h5 {[%clk 0:00:56]} 28. g5 {[%clk 0:01:26]}  f6 {[%clk 0:00:52]} 29. Rd6 {[%clk 0:01:24]}  e5 {[%clk 0:00:51]} 30. Ba7 {[%clk 0:01:21]}  Kf5 {[%clk 0:00:43]} 31. gxf6 {[%clk 0:01:16]}  gxf6 {[%clk 0:00:44]} 32. Kg2 {[%clk 0:01:17]}  Rb4 {[%clk 0:00:37]} 33. Ra6 {[%clk 0:01:02]}  Rg4+ {[%clk 0:00:32]} 34. Kh3 {[%clk 0:00:59]}  Be1 {[%clk 0:00:31]} 35. f3 {[%clk 0:01:00]}  Rg3+ {[%clk 0:00:30]} 36. Kh2 {[%clk 0:00:58]}  Rxf3 {[%clk 0:00:30]} 37. Bc5 {[%clk 0:00:53]}  Bxh4 {[%clk 0:00:29]} 38. Ra4 {[%clk 0:00:52]}  Bg5 {[%clk 0:00:27]} 39. e4+ {[%clk 0:00:51]}  Kg4 {[%clk 0:00:27]} 40. Ra2 {[%clk 0:00:45]}  Bf4+ {[%clk 0:00:26]} 41. Kg2 {[%clk 0:00:45]}  h4 {[%clk 0:00:24]} 42. Ra8 {[%clk 0:00:40]}  h3+ {[%clk 0:00:23]} 43. Kg1 {[%clk 0:00:40]}  h2+ {[%clk 0:00:19]} 44. Kg2 {[%clk 0:00:41]}  Rg3+ {[%clk 0:00:19]} 45. Kh1 {[%clk 0:00:25]}  Rc3 {[%clk 0:00:19]} 46. Ba3 {[%clk 0:00:18]}  Rd3 {[%clk 0:00:17]} 47. Rg8+ {[%clk 0:00:16]}  Kf3 {[%clk 0:00:18]} 48. Rd8 {[%clk 0:00:12]}  Rxd8 {[%clk 0:00:16]} 49. Bd6 {[%clk 0:00:10]}  Ra8 {[%clk 0:00:15]} 50. Ba3 {[%clk 0:00:10]}  Ra4 {[%clk 0:00:15]} 51. Bb2 {[%clk 0:00:09]}  Rxe4 {[%clk 0:00:15]} 52. Bc3 {[%clk 0:00:07]}  Kg4 {[%clk 0:00:13]} 53. Kg2 {[%clk 0:00:05]}  Re2+ {[%clk 0:00:13]} 54. Kh1 {[%clk 0:00:05]}  Rc2 {[%clk 0:00:14]} 55. Bb2 {[%clk 0:00:04]}  f5 {[%clk 0:00:12]} 56. Ba3 {[%clk 0:00:03]}  e4 {[%clk 0:00:12]} 57. Bb2 {[%clk 0:00:02]}  e3 {[%clk 0:00:12]} 0-1


[Site "https://www.chess.com"]

[Event "Titled Tuesday Blitz August 3 2021"]
[White "Ismagilov, Damir"]
[Black "Assaubayeva, Bibisara"]
[WhiteFideId "34199982"]
[BlackFideId "13708694"]
[WhiteElo "2075"]
[BlackElo "2232"]
[Result "0-1"]
[Round "08"]
[TimeControl "180+1"]
[Date "2021.08.03"]
[WhiteClock "0:00:53"]
[BlackClock "0:01:08"]

1. d4 {[%clk 0:03:00]}  Nf6 {[%clk 0:02:58]} 2. c4 {[%clk 0:03:01]}  g6 {[%clk 0:02:59]} 3. Nc3 {[%clk 0:03:01]}  Bg7 {[%clk 0:02:59]} 4. e4 {[%clk 0:03:01]}  d6 {[%clk 0:03:00]} 5. Be2 {[%clk 0:03:01]}  O-O {[%clk 0:03:01]} 6. Nf3 {[%clk 0:03:01]}  e5 {[%clk 0:03:00]} 7. O-O {[%clk 0:03:00]}  Nc6 {[%clk 0:03:00]} 8. d5 {[%clk 0:02:59]}  Ne7 {[%clk 0:03:01]} 9. Ne1 {[%clk 0:02:58]}  Nd7 {[%clk 0:03:01]} 10. Nd3 {[%clk 0:02:55]}  f5 {[%clk 0:03:01]} 11. f3 {[%clk 0:02:54]}  f4 {[%clk 0:03:01]} 12. b4 {[%clk 0:02:53]}  g5 {[%clk 0:02:59]} 13. c5 {[%clk 0:02:53]}  h5 {[%clk 0:02:54]} 14. a4 {[%clk 0:02:51]}  Nf6 {[%clk 0:02:53]} 15. Nf2 {[%clk 0:02:45]}  Rf7 {[%clk 0:02:46]} 16. a5 {[%clk 0:02:43]}  Bf8 {[%clk 0:02:34]} 17. Ba3 {[%clk 0:02:31]}  Rg7 {[%clk 0:02:32]} 18. h3 {[%clk 0:02:11]}  Ng6 {[%clk 0:02:19]} 19. b5 {[%clk 0:02:08]}  dxc5 {[%clk 0:02:07]} 20. b6 {[%clk 0:01:55]}  axb6 {[%clk 0:02:06]} 21. axb6 {[%clk 0:01:54]}  cxb6 {[%clk 0:02:05]} 22. Qb3 {[%clk 0:01:54]}  g4 {[%clk 0:02:00]} 23. hxg4 {[%clk 0:01:51]}  hxg4 {[%clk 0:02:01]} 24. fxg4 {[%clk 0:01:50]}  Nh4 {[%clk 0:01:55]} 25. Na4 {[%clk 0:01:39]}  Nxg4 {[%clk 0:01:45]} 26. Bxg4 {[%clk 0:01:40]}  Bxg4 {[%clk 0:01:44]} 27. Nxg4 {[%clk 0:01:37]}  Rxg4 {[%clk 0:01:44]} 28. Rf2 {[%clk 0:01:35]}  Rg3 {[%clk 0:01:37]} 29. Qc4 {[%clk 0:01:24]}  Qe8 {[%clk 0:01:26]} 30. Nc3 {[%clk 0:01:12]}  Qg6 {[%clk 0:01:21]} 31. d6+ {[%clk 0:01:08]}  Kh8 {[%clk 0:01:17]} 32. Qe2 {[%clk 0:01:04]}  Rxc3 {[%clk 0:01:15]} 33. Bb2 {[%clk 0:01:04]}  Rxa1+ {[%clk 0:01:14]} 34. Bxa1 {[%clk 0:01:05]}  Rc1+ {[%clk 0:01:13]} 35. Rf1 {[%clk 0:01:03]}  Rxf1+ {[%clk 0:01:12]} 36. Qxf1 {[%clk 0:01:04]}  Bxd6 {[%clk 0:01:12]} 37. Qf2 {[%clk 0:01:02]}  Qg3 {[%clk 0:01:09]} 38. Qd2 {[%clk 0:00:53]}  Nf3+ {[%clk 0:01:08]} 0-1


[Site "https://www.chess.com"]

[Event "Titled Tuesday Blitz August 3 2021"]
[White "Jacobson, Aaron"]
[Black "Daulyte-Cornette, Deimante"]
[WhiteFideId "2089912"]
[BlackFideId "12802859"]
[WhiteElo "2265"]
[BlackElo "2285"]
[Result "1-0"]
[Round "08"]
[TimeControl "180+1"]
[Date "2021.08.03"]
[WhiteClock "0:00:04"]
[BlackClock "0:00:02"]

1. e4 {[%clk 0:02:27]}  Nf6 {[%clk 0:02:59]} 2. Nc3 {[%clk 0:02:26]}  d5 {[%clk 0:02:57]} 3. exd5 {[%clk 0:02:27]}  Nxd5 {[%clk 0:02:57]} 4. Bc4 {[%clk 0:02:28]}  c6 {[%clk 0:02:52]} 5. Qf3 {[%clk 0:02:28]}  e6 {[%clk 0:02:51]} 6. Nge2 {[%clk 0:02:28]}  Bd6 {[%clk 0:02:43]} 7. Ne4 {[%clk 0:02:26]}  Be7 {[%clk 0:02:37]} 8. Qg3 {[%clk 0:02:27]}  O-O {[%clk 0:02:29]} 9. d4 {[%clk 0:02:23]}  f5 {[%clk 0:02:06]} 10. Nc5 {[%clk 0:01:57]}  Bxc5 {[%clk 0:01:49]} 11. dxc5 {[%clk 0:01:58]}  Qa5+ {[%clk 0:01:49]} 12. c3 {[%clk 0:01:55]}  Qxc5 {[%clk 0:01:48]} 13. Bb3 {[%clk 0:01:56]}  Nd7 {[%clk 0:01:38]} 14. Nd4 {[%clk 0:01:06]}  N7f6 {[%clk 0:01:29]} 15. O-O {[%clk 0:01:02]}  Ne4 {[%clk 0:01:24]} 16. Qh4 {[%clk 0:00:52]}  Bd7 {[%clk 0:01:14]} 17. Bc2 {[%clk 0:00:42]}  Nef6 {[%clk 0:00:49]} 18. Re1 {[%clk 0:00:37]}  Rae8 {[%clk 0:00:48]} 19. Bd2 {[%clk 0:00:35]}  Qd6 {[%clk 0:00:39]} 20. Rad1 {[%clk 0:00:31]}  c5 {[%clk 0:00:39]} 21. Nf3 {[%clk 0:00:28]}  Qc7 {[%clk 0:00:35]} 22. Ne5 {[%clk 0:00:24]}  Bc8 {[%clk 0:00:30]} 23. c4 {[%clk 0:00:23]}  Ne7 {[%clk 0:00:26]} 24. Bf4 {[%clk 0:00:22]}  Qa5 {[%clk 0:00:20]} 25. a3 {[%clk 0:00:18]}  Nc6 {[%clk 0:00:20]} 26. Nxc6 {[%clk 0:00:16]}  bxc6 {[%clk 0:00:20]} 27. Bd6 {[%clk 0:00:11]}  Rf7 {[%clk 0:00:19]} 28. Qg5 {[%clk 0:00:07]}  Qa6 {[%clk 0:00:17]} 29. Qf4 {[%clk 0:00:06]}  Nh5 {[%clk 0:00:15]} 30. Qh4 {[%clk 0:00:05]}  Nf6 {[%clk 0:00:12]} 31. Bxc5 {[%clk 0:00:06]}  Rd7 {[%clk 0:00:11]} 32. b4 {[%clk 0:00:06]}  Qb7 {[%clk 0:00:09]} 33. Bb3 {[%clk 0:00:05]}  a5 {[%clk 0:00:06]} 34. Rxd7 {[%clk 0:00:06]}  Nxd7 {[%clk 0:00:05]} 35. Bd6 {[%clk 0:00:06]}  axb4 {[%clk 0:00:05]} 36. axb4 {[%clk 0:00:07]}  c5 {[%clk 0:00:05]} 37. b5 {[%clk 0:00:08]}  Qb6 {[%clk 0:00:05]} 38. Bf4 {[%clk 0:00:06]}  e5 {[%clk 0:00:05]} 39. Qh5 {[%clk 0:00:06]}  g6 {[%clk 0:00:04]} 40. Qf3 {[%clk 0:00:07]}  e4 {[%clk 0:00:04]} 41. Qe3 {[%clk 0:00:07]}  Qf6 {[%clk 0:00:03]} 42. Rd1 {[%clk 0:00:07]}  Ne5 {[%clk 0:00:03]} 43. h3 {[%clk 0:00:06]}  Nd3 {[%clk 0:00:03]} 44. Bh2 {[%clk 0:00:04]}  Rd8 {[%clk 0:00:02]} 45. g4 {[%clk 0:00:04]} 1-0


[Site "https://www.chess.com"]

[Event "Titled Tuesday Blitz August 3 2021"]
[White "Jacobson, Brandon"]
[Black "Rasulov, Vugar"]
[WhiteFideId "30901561"]
[BlackFideId "13402390"]
[WhiteElo "2362"]
[BlackElo "2553"]
[Result "0-1"]
[Round "08"]
[TimeControl "180+1"]
[Date "2021.08.03"]
[WhiteClock "0:00:24"]
[BlackClock "0:01:07"]

1. d4 {[%clk 0:03:00]}  Nf6 {[%clk 0:03:00]} 2. c4 {[%clk 0:03:00]}  e6 {[%clk 0:02:59]} 3. Nc3 {[%clk 0:03:00]}  Bb4 {[%clk 0:02:58]} 4. e3 {[%clk 0:03:00]}  O-O {[%clk 0:02:58]} 5. Bd3 {[%clk 0:03:01]}  d6 {[%clk 0:02:59]} 6. Ne2 {[%clk 0:03:01]}  Nbd7 {[%clk 0:02:57]} 7. a3 {[%clk 0:02:57]}  Bxc3+ {[%clk 0:02:56]} 8. Nxc3 {[%clk 0:02:58]}  e5 {[%clk 0:02:57]} 9. O-O {[%clk 0:02:58]}  Qe7 {[%clk 0:02:54]} 10. f3 {[%clk 0:02:52]}  b6 {[%clk 0:02:44]} 11. d5 {[%clk 0:02:50]}  a5 {[%clk 0:02:43]} 12. b3 {[%clk 0:02:50]}  Nc5 {[%clk 0:02:37]} 13. Bc2 {[%clk 0:02:48]}  Bd7 {[%clk 0:02:35]} 14. Rb1 {[%clk 0:02:48]}  g6 {[%clk 0:02:29]} 15. Rf2 {[%clk 0:02:43]}  Nh5 {[%clk 0:02:27]} 16. g4 {[%clk 0:02:42]}  Ng7 {[%clk 0:02:26]} 17. Rg2 {[%clk 0:02:43]}  f5 {[%clk 0:02:24]} 18. g5 {[%clk 0:02:38]}  f4 {[%clk 0:02:19]} 19. e4 {[%clk 0:02:29]}  Bh3 {[%clk 0:02:19]} 20. Rd2 {[%clk 0:02:20]}  Qxg5+ {[%clk 0:02:18]} 21. Kh1 {[%clk 0:02:21]}  Nh5 {[%clk 0:02:14]} 22. Qg1 {[%clk 0:02:12]}  Qh4 {[%clk 0:02:12]} 23. Qf2 {[%clk 0:01:57]}  Qe7 {[%clk 0:02:05]} 24. Nb5 {[%clk 0:01:57]}  Rfc8 {[%clk 0:01:51]} 25. b4 {[%clk 0:01:54]}  axb4 {[%clk 0:01:51]} 26. axb4 {[%clk 0:01:54]}  Nd7 {[%clk 0:01:48]} 27. Bb3 {[%clk 0:01:55]}  Kh8 {[%clk 0:01:44]} 28. Ra2 {[%clk 0:01:55]}  Rxa2 {[%clk 0:01:39]} 29. Qxa2 {[%clk 0:01:56]}  Qh4 {[%clk 0:01:39]} 30. Qe2 {[%clk 0:01:53]}  Bf1 {[%clk 0:01:34]} 31. Qd2 {[%clk 0:01:36]}  Be2 {[%clk 0:01:30]} 32. Kg2 {[%clk 0:01:26]}  Bxf3+ {[%clk 0:01:22]} 33. Kxf3 {[%clk 0:01:27]}  Ndf6 {[%clk 0:01:23]} 34. Qg2 {[%clk 0:01:12]}  g5 {[%clk 0:01:15]} 35. h3 {[%clk 0:00:41]}  Rg8 {[%clk 0:01:14]} 36. Ke2 {[%clk 0:00:31]}  g4 {[%clk 0:01:10]} 37. hxg4 {[%clk 0:00:32]}  Rxg4 {[%clk 0:01:10]} 38. Qf2 {[%clk 0:00:33]}  Qh3 {[%clk 0:01:07]} 39. Qf1 {[%clk 0:00:24]} 0-1


[Site "https://www.chess.com"]

[Event "Titled Tuesday Blitz August 3 2021"]
[White "Jian, Alex"]
[Black "Karttunen, Mika"]
[WhiteFideId "30901022"]
[BlackFideId "502081"]
[WhiteElo "2111"]
[BlackElo "2343"]
[Result "1-0"]
[Round "08"]
[TimeControl "180+1"]
[Date "2021.08.03"]
[WhiteClock "0:00:05"]
[BlackClock "0:00:01"]

1. Nf3 {[%clk 0:03:00]}  Nf6 {[%clk 0:02:57]} 2. b3 {[%clk 0:03:00]}  d5 {[%clk 0:02:56]} 3. Bb2 {[%clk 0:03:00]}  e6 {[%clk 0:02:54]} 4. e3 {[%clk 0:03:00]}  Be7 {[%clk 0:02:55]} 5. Ne5 {[%clk 0:02:57]}  O-O {[%clk 0:02:54]} 6. Bd3 {[%clk 0:02:57]}  Nbd7 {[%clk 0:02:36]} 7. f4 {[%clk 0:02:57]}  Nxe5 {[%clk 0:02:32]} 8. fxe5 {[%clk 0:02:57]}  Ne4 {[%clk 0:02:31]} 9. O-O {[%clk 0:02:54]}  f5 {[%clk 0:02:26]} 10. Nc3 {[%clk 0:02:48]}  b6 {[%clk 0:02:03]} 11. a4 {[%clk 0:02:27]}  Ng5 {[%clk 0:01:50]} 12. Ne2 {[%clk 0:02:19]}  c5 {[%clk 0:01:42]} 13. a5 {[%clk 0:02:17]}  Rb8 {[%clk 0:01:24]} 14. axb6 {[%clk 0:02:12]}  axb6 {[%clk 0:01:24]} 15. Nf4 {[%clk 0:02:08]}  Nf7 {[%clk 0:01:18]} 16. Ba6 {[%clk 0:02:02]}  Bd7 {[%clk 0:01:16]} 17. c4 {[%clk 0:01:52]}  d4 {[%clk 0:01:04]} 18. exd4 {[%clk 0:01:34]}  cxd4 {[%clk 0:01:04]} 19. Bxd4 {[%clk 0:01:34]}  Bc5 {[%clk 0:01:03]} 20. Bxc5 {[%clk 0:00:59]}  bxc5 {[%clk 0:01:03]} 21. Re1 {[%clk 0:00:51]}  Qb6 {[%clk 0:00:57]} 22. Bb5 {[%clk 0:00:45]}  Bxb5 {[%clk 0:00:51]} 23. cxb5 {[%clk 0:00:46]}  Rfe8 {[%clk 0:00:37]} 24. Ra6 {[%clk 0:00:39]}  Qxb5 {[%clk 0:00:37]} 25. Rxe6 {[%clk 0:00:39]}  Rxe6 {[%clk 0:00:16]} 26. Nxe6 {[%clk 0:00:40]}  Qb6 {[%clk 0:00:16]} 27. Nf4 {[%clk 0:00:29]}  c4+ {[%clk 0:00:16]} 28. d4 {[%clk 0:00:29]}  cxb3 {[%clk 0:00:16]} 29. Qd3 {[%clk 0:00:26]}  b2 {[%clk 0:00:15]} 30. Rb1 {[%clk 0:00:11]}  Nxe5 {[%clk 0:00:15]} 31. Qxf5 {[%clk 0:00:12]}  Qxd4+ {[%clk 0:00:14]} 32. Kh1 {[%clk 0:00:13]}  Qc3 {[%clk 0:00:05]} 33. h3 {[%clk 0:00:09]}  Qc1+ {[%clk 0:00:05]} 34. Kh2 {[%clk 0:00:09]}  Nf7 {[%clk 0:00:01]} 35. Qe4 {[%clk 0:00:05]} 1-0


[Site "https://www.chess.com"]

[Event "Titled Tuesday Blitz August 3 2021"]
[White "Kim, Sergey"]
[Black "Murzin, Volodar"]
[WhiteFideId "13700570"]
[BlackFideId "44155573"]
[WhiteElo "2594"]
[BlackElo "2541"]
[Result "0-1"]
[Round "08"]
[TimeControl "180+1"]
[Date "2021.08.03"]
[WhiteClock "0:00:04"]
[BlackClock "0:00:03"]

1. d4 {[%clk 0:02:54]}  Nf6 {[%clk 0:02:58]} 2. c4 {[%clk 0:02:54]}  g6 {[%clk 0:02:58]} 3. Nc3 {[%clk 0:02:53]}  Bg7 {[%clk 0:02:58]} 4. e4 {[%clk 0:02:53]}  O-O {[%clk 0:02:59]} 5. Nge2 {[%clk 0:02:53]}  d6 {[%clk 0:02:56]} 6. Ng3 {[%clk 0:02:53]}  c5 {[%clk 0:02:50]} 7. d5 {[%clk 0:02:52]}  b5 {[%clk 0:02:47]} 8. Nxb5 {[%clk 0:02:51]}  h5 {[%clk 0:02:31]} 9. h4 {[%clk 0:02:33]}  Nbd7 {[%clk 0:02:27]} 10. Nc3 {[%clk 0:02:28]}  Ne5 {[%clk 0:02:26]} 11. Be2 {[%clk 0:02:27]}  Ba6 {[%clk 0:01:44]} 12. b3 {[%clk 0:02:24]}  e6 {[%clk 0:01:37]} 13. Bd2 {[%clk 0:01:57]}  Re8 {[%clk 0:01:18]} 14. a4 {[%clk 0:01:48]}  exd5 {[%clk 0:01:13]} 15. exd5 {[%clk 0:01:47]}  Nd3+ {[%clk 0:00:40]} 16. Kf1 {[%clk 0:01:46]}  Ne5 {[%clk 0:00:29]} 17. Rb1 {[%clk 0:01:40]}  Bc8 {[%clk 0:00:20]} 18. Qc2 {[%clk 0:01:32]}  Neg4 {[%clk 0:00:11]} 19. Bg5 {[%clk 0:01:23]}  Qd7 {[%clk 0:00:10]} 20. Bd3 {[%clk 0:01:09]}  Nh7 {[%clk 0:00:09]} 21. Bf4 {[%clk 0:00:51]}  Nhf6 {[%clk 0:00:05]} 22. Bg5 {[%clk 0:00:47]}  a6 {[%clk 0:00:06]} 23. Re1 {[%clk 0:00:43]}  Rxe1+ {[%clk 0:00:06]} 24. Kxe1 {[%clk 0:00:43]}  Qc7 {[%clk 0:00:06]} 25. f3 {[%clk 0:00:36]}  Ne5 {[%clk 0:00:06]} 26. Kf2 {[%clk 0:00:30]}  Rb8 {[%clk 0:00:05]} 27. Re1 {[%clk 0:00:26]}  Nxd3+ {[%clk 0:00:05]} 28. Qxd3 {[%clk 0:00:25]}  Rxb3 {[%clk 0:00:06]} 29. Kg1 {[%clk 0:00:18]}  Bd7 {[%clk 0:00:04]} 30. Qd2 {[%clk 0:00:15]}  Nh7 {[%clk 0:00:03]} 31. Nce4 {[%clk 0:00:14]}  Bd4+ {[%clk 0:00:03]} 32. Kh2 {[%clk 0:00:13]}  f5 {[%clk 0:00:03]} 33. Nf2 {[%clk 0:00:10]}  Rb2 {[%clk 0:00:03]} 34. Qd3 {[%clk 0:00:05]}  Rxf2 {[%clk 0:00:02]} 35. Re7 {[%clk 0:00:04]}  Nxg5 {[%clk 0:00:03]} 36. hxg5 {[%clk 0:00:04]}  Qd8 {[%clk 0:00:03]} 0-1


[Site "https://www.chess.com"]

[Event "Titled Tuesday Blitz August 3 2021"]
[White "Krishnakumar, Sriram"]
[Black "Samadov, Read"]
[WhiteFideId "30915856"]
[BlackFideId "13417444"]
[WhiteElo "2328"]
[BlackElo "2084"]
[Result "0-1"]
[Round "08"]
[TimeControl "180+1"]
[Date "2021.08.03"]
[WhiteClock "0:00:32"]
[BlackClock "0:00:29"]

1. e4 {[%clk 0:03:00]}  c5 {[%clk 0:02:59]} 2. Nf3 {[%clk 0:03:00]}  d6 {[%clk 0:02:59]} 3. Bb5+ {[%clk 0:02:58]}  Bd7 {[%clk 0:02:59]} 4. Bxd7+ {[%clk 0:02:58]}  Qxd7 {[%clk 0:03:00]} 5. c4 {[%clk 0:02:58]}  Nc6 {[%clk 0:02:59]} 6. Nc3 {[%clk 0:02:58]}  e5 {[%clk 0:02:57]} 7. d3 {[%clk 0:02:57]}  Be7 {[%clk 0:02:57]} 8. a3 {[%clk 0:02:57]}  Bd8 {[%clk 0:02:57]} 9. b4 {[%clk 0:02:57]}  cxb4 {[%clk 0:02:56]} 10. axb4 {[%clk 0:02:58]}  Nxb4 {[%clk 0:02:56]} 11. Ba3 {[%clk 0:02:58]}  Nc6 {[%clk 0:02:56]} 12. c5 {[%clk 0:02:49]}  dxc5 {[%clk 0:02:53]} 13. Bxc5 {[%clk 0:02:50]}  Nge7 {[%clk 0:02:52]} 14. O-O {[%clk 0:02:45]}  O-O {[%clk 0:02:51]} 15. Nd5 {[%clk 0:02:45]}  b6 {[%clk 0:02:38]} 16. Ba3 {[%clk 0:02:39]}  Re8 {[%clk 0:02:32]} 17. Bxe7 {[%clk 0:02:29]}  Bxe7 {[%clk 0:02:33]} 18. Rc1 {[%clk 0:02:27]}  Bc5 {[%clk 0:02:31]} 19. Qa4 {[%clk 0:02:23]}  Rad8 {[%clk 0:02:24]} 20. Rc2 {[%clk 0:02:14]}  Nd4 {[%clk 0:02:01]} 21. Qxd7 {[%clk 0:02:12]}  Nxf3+ {[%clk 0:01:57]} 22. gxf3 {[%clk 0:02:12]}  Rxd7 {[%clk 0:01:57]} 23. Ra1 {[%clk 0:02:10]}  Red8 {[%clk 0:01:51]} 24. Ra6 {[%clk 0:02:08]}  f6 {[%clk 0:01:47]} 25. Rca2 {[%clk 0:02:07]}  b5 {[%clk 0:01:37]} 26. Rc2 {[%clk 0:01:55]}  Rxd5 {[%clk 0:01:24]} 27. exd5 {[%clk 0:01:53]}  Rxd5 {[%clk 0:01:24]} 28. Rc6 {[%clk 0:01:33]}  Bb6 {[%clk 0:01:23]} 29. Rc8+ {[%clk 0:01:33]}  Kf7 {[%clk 0:01:23]} 30. Rb2 {[%clk 0:01:32]}  Rxd3 {[%clk 0:01:20]} 31. Rxb5 {[%clk 0:01:30]}  Rxf3 {[%clk 0:01:19]} 32. Rb2 {[%clk 0:01:29]}  h5 {[%clk 0:01:17]} 33. Kg2 {[%clk 0:01:28]}  Rf4 {[%clk 0:01:17]} 34. Rb8 {[%clk 0:01:25]}  g5 {[%clk 0:01:16]} 35. Rb7+ {[%clk 0:01:25]}  Kg6 {[%clk 0:01:16]} 36. Rc2 {[%clk 0:01:25]}  g4 {[%clk 0:01:16]} 37. Rb8 {[%clk 0:01:18]}  h4 {[%clk 0:01:14]} 38. Rg8+ {[%clk 0:01:17]}  Kf5 {[%clk 0:01:15]} 39. Rh8 {[%clk 0:01:17]}  h3+ {[%clk 0:01:14]} 40. Kf1 {[%clk 0:01:16]}  Ra4 {[%clk 0:01:08]} 41. Rh5+ {[%clk 0:01:10]}  Kf4 {[%clk 0:01:08]} 42. Ke2 {[%clk 0:01:08]}  Re4+ {[%clk 0:01:02]} 43. Kf1 {[%clk 0:01:07]}  a5 {[%clk 0:00:50]} 44. Rb2 {[%clk 0:01:03]}  Rb4 {[%clk 0:00:49]} 45. Rxb4+ {[%clk 0:01:00]}  axb4 {[%clk 0:00:49]} 46. Rh8 {[%clk 0:00:58]}  Ke4 {[%clk 0:00:48]} 47. Ke2 {[%clk 0:00:58]}  f5 {[%clk 0:00:44]} 48. Rb8 {[%clk 0:00:57]}  Bc5 {[%clk 0:00:44]} 49. Rc8 {[%clk 0:00:56]}  Bd4 {[%clk 0:00:44]} 50. Rb8 {[%clk 0:00:53]}  Bc3 {[%clk 0:00:42]} 51. Rb5 {[%clk 0:00:53]}  f4 {[%clk 0:00:41]} 52. Kf1 {[%clk 0:00:49]}  Kf3 {[%clk 0:00:39]} 53. Kg1 {[%clk 0:00:49]}  e4 {[%clk 0:00:39]} 54. Kh1 {[%clk 0:00:42]}  e3 {[%clk 0:00:36]} 55. fxe3 {[%clk 0:00:40]}  fxe3 {[%clk 0:00:35]} 56. Rf5+ {[%clk 0:00:40]}  Ke2 {[%clk 0:00:34]} 57. Rf1 {[%clk 0:00:40]}  Kd2 {[%clk 0:00:32]} 58. Rb1 {[%clk 0:00:35]}  e2 {[%clk 0:00:31]} 59. Kg1 {[%clk 0:00:28]}  e1=Q+ {[%clk 0:00:28]} 60. Rxe1 {[%clk 0:00:29]}  Kxe1 {[%clk 0:00:29]} 61. Kh1 {[%clk 0:00:29]}  Ke2 {[%clk 0:00:29]} 62. Kg1 {[%clk 0:00:30]}  b3 {[%clk 0:00:29]} 63. Kh1 {[%clk 0:00:31]}  b2 {[%clk 0:00:29]} 64. Kg1 {[%clk 0:00:32]}  b1=Q# {[%clk 0:00:29]} 0-1


[Site "https://www.chess.com"]